fUST/lending_fUST_20240120
["ID","MTS","AMOUNT","RATE_DAILY","PERIOD"]
[312268119,1705727052663,154.7215013,0.00014679,2]
[312268120,1705727063056,1215.98800807,0.00014679,2]
[312268121,1705727085416,155.37602413,0.00014606,2]
[312268122,1705727087151,154.7215013,0.00016299,2]
[312268123,1705727087313,163.07750006,0.00016299,2]
[312268124,1705727089164,199.18550125,0.00016299,2]
[312268125,1705727090510,521.94289961,0.00016299,2]
[312268126,1705727091236,243.04898199,0.00016299,2]
[312268127,1705727094231,903.32634326,0.00016299,2]
[312268128,1705727095847,8948.41949378,0.00016139,2]
[312268129,1705727099972,711.55955135,0.00016299,2]
[312268130,1705727101411,1740.4543568,0.00016299,2]
[312268131,1705727108482,1438.69728082,0.00016299,2]
[312268132,1705727115539,1293.3633064,0.00016299,2]
[312268133,1705727116210,1266.38115634,0.00016299,2]
[312268134,1705727118516,154.7215013,0.00016299,2]
[312268135,1705727119929,154.7215013,0.00016299,2]
[312268136,1705727120087,154.7215013,0.00016299,2]
[312268137,1705727120169,81184.25616528,0.00016299,2]
[312268138,1705727120637,323.01933147,0.00016299,2]
[312268139,1705727123247,178.85727899,0.00016299,2]
[312268140,1705727124046,3744.87402007,0.00016299,2]
[312268141,1705727125006,265.38873656,0.00016299,2]
[312268142,1705727129676,2038.4422792,0.00016299,2]
[312268143,1705727130249,452.57187784,0.00016299,2]
[312268144,1705727133027,301.83960351,0.00016299,2]
[312268145,1705727133175,154.7215013,0.00016299,3]
[312268146,1705727134703,175.16804152,0.00016299,2]
[312268147,1705727136715,3128.92217734,0.00016299,2]
[312268153,1705727137382,1072.05041932,0.00016299,2]
[312268154,1705727139935,154.7215013,0.00016299,2]
[312268155,1705727142048,2143.55335238,0.00016299,2]
[312268156,1705727143015,265.38873656,0.00016299,2]
[312268157,1705727143245,178.85727899,0.00016299,2]
[312268158,1705727143434,199.08580638,0.00016299,2]
[312268159,1705727145149,1992.87766821,0.00016299,2]
[312268160,1705727147013,4812.32326455,0.00016299,2]
[312268161,1705727148462,454.05357335,0.00016299,2]
[312268162,1705727149678,2038.4422792,0.00016299,2]
[312268163,1705727150697,175.16804152,0.00016299,2]
[312268164,1705727151028,301.83960351,0.00016299,2]
[312268165,1705727151165,154.7215013,0.00014669,2]
[312268166,1705727151513,644.19635374,0.00016298,2]
[312268167,1705727152708,327.79964837,0.00016299,2]
[312268168,1705727152855,375.15448472,0.00016299,2]
[312268169,1705727152948,329.42705251,0.00016298,2]
[312268170,1705727154367,154.7215013,0.00016298,2]
[312268171,1705727154517,18898.32158241,0.00016299,2]
[312268172,1705727155936,208.06142067,0.00016299,2]
[312268173,1705727156336,163.07750006,0.00016299,2]
[312268174,1705727159159,20867.97666951,0.00016299,2]
[312268175,1705727159189,878.33140919,0.00016299,2]
[312268176,1705727159398,298.75711585,0.00016299,2]
[312268177,1705727159687,199.18550125,0.00016299,2]
[312268178,1705727163026,521.94289961,0.00016299,2]
[312268179,1705727163077,279.7901961,0.00016299,2]
[312268180,1705727165003,1263.52372678,0.00016299,2]
[312268181,1705727165181,154.7215013,0.00014669,2]
[312268182,1705727165505,780.47283382,0.00016299,2]
[312268183,1705727165701,2038.4422792,0.00016299,2]
[312268184,1705727166698,175.16804152,0.00016299,2]
[312268185,1705727170505,4699.35933886,0.00016299,2]
[312268186,1705727170958,329.42705251,0.00016299,2]
[312268187,1705727171031,301.83960351,0.00016299,2]
[312268188,1705727171405,178.85727899,0.00016299,2]
[312268189,1705727171683,199.18550125,0.00016299,2]
[312268190,1705727173184,20867.97666951,0.00016299,2]
[312268191,1705727174349,163.07750006,0.00016299,2]
[312268192,1705727174388,156.68786326,0.00016299,2]
[312268193,1705727174742,903.32634326,0.00016299,2]
[312268194,1705727176487,711.55955135,0.00016299,2]
[312268198,1705727177459,521.94289961,0.00016299,2]
[312268199,1705727179920,1740.4543568,0.00016299,2]
[312268200,1705727180891,375.33169961,0.00016201,2]
[312268201,1705727183174,154.7215013,0.00014669,2]
[312268202,1705727183682,1187.25191133,0.00016299,2]
[312268203,1705727184716,175.16804152,0.00016299,2]
[312268204,1705727184977,1438.69728082,0.00016299,2]
[312268205,1705727187038,280.68156126,0.00016299,2]
[312268206,1705727188483,711.55955135,0.00016299,2]
[312268207,1705727189689,199.18550125,0.00016299,2]
[312268208,1705727190342,163.07750006,0.00016299,2]
[312268209,1705727190731,1032.41133907,0.00016299,2]
[312268210,1705727190957,268.43955298,0.00016299,2]
[312268211,1705727191255,179.13847843,0.00016299,2]
[312268212,1705727193162,17982.29970787,0.00016299,2]
[312268213,1705727193946,1202.23861463,0.00016299,2]
[312268214,1705727195022,302.04352888,0.00016299,2]
[312268215,1705727196656,81184.25616528,0.00016299,2]
[312268216,1705727196727,1266.38115634,0.00016299,2]
[312268217,1705727196881,154.7215013,0.00016299,2]
[312268218,1705727198977,1438.69728082,0.00016299,2]
[312268219,1705727199176,154.7215013,0.00014669,2]
[312268220,1705727204699,208.50595385,0.00016299,2]
[312268221,1705727209685,199.18550125,0.00016299,2]
[312268222,1705727213313,154.7215013,0.00016299,2]
[312268223,1705727216208,1602.62230959,0.00016299,2]
[312268224,1705727225180,154.7215013,0.00014671,2]
[312268225,1705727227307,185.38301421,0.00016299,2]
[312268226,1705727228206,1246.16896124,0.00016299,2]
[312268227,1705727235086,-154.7215013,0.000163,2]
[312268228,1705727235106,-631.53017549,0.000163,2]
[312268229,1705727241089,-56.20303294,0.000163,2]
[312268230,1705727241111,-1855.81840994,0.000163,2]
[312268231,1705727243180,154.7215013,0.00014669,2]
[312268232,1705727253503,154.7215013,0.00016299,2]
[312268233,1705727257588,543.63943887,0.00016299,2]
[312268234,1705727263226,154.7215013,0.00014669,2]
[312268235,1705727268985,711.55955135,0.00016299,2]
[312268236,1705727271222,1266.38115634,0.00016299,2]
[312268237,1705727273162,81184.25616528,0.00016299,2]
[312268238,1705727275657,154.7215013,0.00016299,2]
[312268239,1705727275690,1438.69728082,0.00016299,2]
[312268240,1705727279187,154.7215013,0.00014671,2]
[312268241,1705727299185,154.7215013,0.00014671,2]
[312268243,1705727323187,154.7215013,0.00014671,2]
[312268244,1705727340148,1438.69728082,0.00016299,2]
[312268245,1705727343197,154.7215013,0.00014671,2]
[312268246,1705727345734,1266.38115634,0.00016299,2]
[312268249,1705727363199,154.7215013,0.00014671,2]
[312268251,1705727385205,154.7215013,0.00014671,2]
[312268252,1705727403220,154.7215013,0.00014671,2]
[312268253,1705727412248,1266.38115634,0.00016299,2]
[312268254,1705727420520,1438.69728082,0.00016299,2]
[312268255,1705727427209,154.7215013,0.00014671,2]
[312268393,1705727438261,-14054.09804668,0.000163,2]
[312268395,1705727438270,-229.77146713,0.00016301,2]
[312268397,1705727438279,-156.41515703,0.00016301,2]
[312268399,1705727438288,-226.81640435,0.00016301,2]
[312268401,1705727438298,-14281.63844792,0.00016301,2]
[312268403,1705727438307,-212.67423732,0.00016301,2]
[312268405,1705727438316,-155.29375896,0.00016301,2]
[312268407,1705727438325,-1232.37129128,0.00016301,2]
[312268409,1705727438335,-156.6862482,0.00016301,2]
[312268411,1705727438344,-6250.30207369,0.00016301,2]
[312268413,1705727438353,-495.75828293,0.00016301,2]
[312268415,1705727438363,-269.92391195,0.00016301,2]
[312268417,1705727438372,-283.02416904,0.00016301,2]
[312268419,1705727438381,-186.64563273,0.00016301,2]
[312268421,1705727438390,-200.79603247,0.00016301,2]
[312268423,1705727438400,-712.05910052,0.00016301,2]
[312268425,1705727438410,-7716.27618615,0.00016301,2]
[312268427,1705727438419,-177.68543403,0.00016301,2]
[312268429,1705727438428,-1143.44104445,0.00016301,2]
[312268431,1705727438437,-1438.69728082,0.00016301,2]
[312268433,1705727438447,-179.60019691,0.00016302,2]
[312268435,1705727438456,-276.90754294,0.00016302,2]
[312268437,1705727438467,-166.49194019,0.00016302,2]
[312268439,1705727438477,-198.20629725,0.00016302,2]
[312268456,1705727438638,-155.08684864,0.00016302,2]
[312268458,1705727438650,-166.49400102,0.00016302,2]
[312268461,1705727438662,-155.30050826,0.00016302,2]
[312268463,1705727438671,-20879.79374241,0.00016302,2]
[312268465,1705727438682,-262.72030745,0.00016302,2]
[312268467,1705727438696,-286.23049881,0.00016302,2]
[312268469,1705727438705,-299.12465914,0.00016302,2]
[312268471,1705727438715,-156.35727794,0.00016302,2]
[312268472,1705727438724,-594.5503399,0.00016302,2]
[312268474,1705727438736,-1589.24944099,0.00016302,2]
[312268477,1705727438745,-185.30842625,0.00016302,2]
[312268479,1705727438756,-155.1765376,0.00016302,2]
[312268481,1705727438768,-154.73694719,0.00016302,2]
[312268483,1705727438777,-225.83294318,0.00016302,2]
[312268485,1705727438786,-287.13703229,0.00016302,2]
[312268487,1705727438796,-191.53338451,0.00016302,2]
[312268489,1705727438805,-2717.41472124,0.00016302,2]
[312268491,1705727438814,-227.36734753,0.00016302,2]
[312268492,1705727438824,-262.50822517,0.00016302,2]
[312268494,1705727438833,-1058.43427131,0.00016302,2]
[312268496,1705727438842,-681.74438698,0.00016302,2]
[312268498,1705727438851,-260.54999403,0.00016302,2]
[312268501,1705727438861,-72827.02415122,0.00016303,2]
[312268503,1705727438871,-1715.42719054,0.00016308,2]
[312268505,1705727438881,-246.91273763,0.0001631,2]
[312268507,1705727438891,-1249.55835857,0.0001631,2]
[312268509,1705727438900,-470.52459336,0.0001631,2]
[312268510,1705727438910,-281.56928792,0.0001631,2]
[312268512,1705727438920,-192.26880532,0.0001631,2]
[312268515,1705727438929,-164.6047724,0.00016325,2]
[312268516,1705727438938,-433.21650898,0.00016328,2]
[312268518,1705727438947,-154.86062544,0.00016385,2]
[312268520,1705727438957,-2073.0632604,0.00016395,2]
[312268522,1705727438966,-849.28051595,0.00016396,2]
[312268525,1705727438976,-172.78574717,0.00016396,2]
[312268527,1705727438987,-13666.91121006,0.00016396,2]
[312268529,1705727438996,-271.48282621,0.00016396,2]
[312268531,1705727439008,-2100.79292545,0.00016396,2]
[312268533,1705727439017,-180.80173683,0.00016397,2]
[312268535,1705727439026,-260.35855748,0.00016397,2]
[312268537,1705727439036,-156.44696199,0.00016397,2]
[312268539,1705727439045,-2978.33774743,0.00016397,2]
[312268541,1705727439054,-879.58613968,0.00016397,2]
[312268543,1705727439063,-454.09289174,0.00016397,2]
[312268545,1705727439073,-272.47884373,0.000165,2]
[312268547,1705727439082,-874.04705685,0.00017235,2]
[312268549,1705727439091,-10531.78529971,0.00017898,2]
[312268551,1705727439100,-200.0,0.00017929,2]
[312268553,1705727439109,-155.31859854,0.00018,2]
[312268555,1705727439119,-2014.44660015,0.000189,2]
[312268557,1705727439128,-1581.76828075,0.00019,2]
[312268559,1705727439138,-165.954589,0.00019178,2]
[312268561,1705727439147,-169.959965,0.00019178,2]
[312268563,1705727439156,-170.423141,0.00019178,2]
[312268565,1705727439167,-1114.14548175,0.000195,2]
[312268567,1705727439175,-824.03065617,0.000197,2]
[312268569,1705727439184,-280.0,0.00019722,2]
[312268571,1705727439194,-155.21656056,0.00019999,2]
[312268573,1705727439203,-202.78082283,0.00019999,2]
[312268575,1705727439212,-154.73694719,0.0002,2]
[312268577,1705727439221,-156.72016772,0.0002,2]
[312268579,1705727439230,-2083.53906819,0.0002,2]
[312268581,1705727439239,-156.56034673,0.0002,2]
[312268583,1705727439248,-300.0,0.0002,2]
[312268585,1705727439258,-228.83391839,0.0002,2]
[312268587,1705727439267,-1197.48170656,0.0002,2]
[312268589,1705727439277,-154.73694719,0.0002,2]
[312268591,1705727439286,-157.2686736,0.0002,2]
[312268593,1705727439295,-156.71629179,0.0002,2]
[312268594,1705727439304,-678.35754423,0.0002,2]
[312268597,1705727439314,-849.96832798,0.0002,2]
[312268598,1705727439324,-1825.35938733,0.00021,2]
[312268601,1705727439334,-327.38324213,0.00021,2]
[312268602,1705727439343,-1764.32790583,0.00021,2]
[312268604,1705727439352,-232.9125187,0.00021,2]
[312268606,1705727439362,-28168.87421576,0.00021,2]
[312268608,1705727439372,-1941.41874875,0.00021,2]
[312268611,1705727439381,-194.2806405,0.00021,2]
[312268613,1705727439390,-391.0,0.00021694,7]
[312268614,1705727439400,-166.666666,0.00021918,2]
[312268616,1705727439410,-3966.85623058,0.00022,2]
[312268619,1705727439419,-154.73694719,0.00022,2]
[312268620,1705727439429,-425.80364021,0.00022,2]
[312268622,1705727439438,-293.34385947,0.00022,4]
[312268624,1705727439448,-10283.28004935,0.00022221,2]
[312268627,1705727439458,-166.666666,0.00022431,2]
[312268628,1705727439467,-166.666666,0.00022944,2]
[312268631,1705727439478,-1570.89243892,0.00023,2]
[312268633,1705727439487,-616.3385083,0.00023286,2]
[312268635,1705727439496,-201.58152353,0.00023286,2]
[312268637,1705727439505,-264.60687267,0.00023286,2]
[312268639,1705727439515,-452.87467727,0.00023288,2]
[312268641,1705727439524,-449.55738739,0.00023288,2]
[312268643,1705727439534,-500.0,0.00023288,2]
[312268645,1705727439543,-500.0,0.00023288,2]
[312268647,1705727439552,-500.0,0.00023288,2]
[312268649,1705727439562,-500.0,0.00023288,2]
[312268651,1705727439572,-500.0,0.00023288,2]
[312268653,1705727439581,-500.0,0.00023288,2]
[312268655,1705727439590,-500.0,0.00023288,2]
[312268657,1705727439599,-441.4474406,0.00023288,2]
[312268659,1705727439608,-500.0,0.00023288,2]
[312268661,1705727439617,-500.0,0.00023288,2]
[312268663,1705727439626,-500.0,0.00023288,2]
[312268665,1705727439635,-500.0,0.00023288,2]
[312268667,1705727439645,-617.3934806,0.00023288,2]
[312268669,1705727439654,-500.0,0.00023288,2]
[312268671,1705727439664,-305.36155066,0.00023288,2]
[312268673,1705727439673,-219.70339086,0.00023288,2]
[312268675,1705727439687,-470.72372029,0.00023288,2]
[312268677,1705727439697,-500.0,0.00023288,2]
[312268679,1705727439706,-509.2617521,0.00023288,2]
[312268681,1705727439715,-500.0,0.00023288,2]
[312268683,1705727439726,-500.0,0.00023288,2]
[312268685,1705727439735,-399.11477479,0.00023288,2]
[312268687,1705727439744,-452.87467727,0.00023288,2]
[312268688,1705727439753,-500.0,0.00023288,2]
[312268691,1705727439763,-300.0,0.00023288,2]
[312268692,1705727439774,-500.0,0.00023288,2]
[312268694,1705727439783,-422.34965768,0.00023288,2]
[312268696,1705727439792,-500.0,0.00023288,2]
[312268698,1705727439801,-500.0,0.00023288,2]
[312268701,1705727439811,-500.0,0.00023288,2]
[312268703,1705727439820,-358.84887174,0.00023288,2]
[312268705,1705727439830,-379.01566947,0.00023288,2]
[312268706,1705727439840,-179.52787988,0.00023288,2]
[312268708,1705727439849,-500.0,0.00023288,2]
[312268710,1705727439858,-500.0,0.00023288,2]
[312268713,1705727439867,-500.0,0.00023288,2]
[312268715,1705727439876,-500.0,0.00023288,2]
[312268717,1705727439886,-500.0,0.00023288,2]
[312268719,1705727439895,-500.0,0.00023288,2]
[312268721,1705727439904,-500.0,0.00023288,2]
[312268723,1705727439914,-500.0,0.00023288,2]
[312268725,1705727439922,-498.75719941,0.00023288,2]
[312268727,1705727439931,-186.33494627,0.00023288,2]
[312268728,1705727439940,-431.30921645,0.00023288,2]
[312268730,1705727439950,-172.52368657,0.00023288,2]
[312268732,1705727439959,-166.666666,0.00023456,2]
[312268734,1705727439969,-200.0,0.00023864,7]
[312268737,1705727439979,-348.0,0.00023864,7]
[312268739,1705727439987,-2014.44660015,0.000239,2]
[312268740,1705727439996,-166.666666,0.00023969,2]
[312268743,1705727440006,-4012.5594856,0.00024,2]
[312268744,1705727440015,-166.666666,0.00024482,2]
[312268746,1705727440024,-1045.90652664,0.00025,2]
[312268749,1705727440034,-763.70587335,0.00025,2]
[312268751,1705727440043,-4721.06450288,0.00025,2]
[312268752,1705727440052,-1739.96410283,0.00025,2]
[312268754,1705727440061,-18876.85769974,0.00025,2]
[312268756,1705727440070,-1001.87795597,0.00025,2]
[312268758,1705727440079,-193.30440341,0.00025,2]
[312268760,1705727440088,-155.16885659,0.00025,2]
[312268762,1705727440097,-155.5855391,0.00025,2]
[312268765,1705727440107,-9286.90575802,0.00025297,2]
[312268767,1705727440116,-193.9845979,0.00025479,2]
[312268768,1705727440125,-241.17116876,0.00026,2]
[312268770,1705727440134,-200.0,0.0002625,15]
[312268772,1705727440143,-200.0,0.0002625,15]
[312268774,1705727440152,-368.0,0.0002625,15]
[312268777,1705727440163,-20317.34,0.00027397,3]
[312268779,1705727440171,-16931.11,0.00027397,3]
[312268781,1705727440180,-3216.27669923,0.000275,2]
[312268783,1705727440189,-9116.9761504,0.0002785,4]
[312268785,1705727440198,-305.59076867,0.00028,2]
[312268787,1705727440207,-157.01491317,0.00028,10]
[312268789,1705727440216,-312.99786489,0.00028,7]
[312268790,1705727440225,-291.58293255,0.00028,2]
[312268793,1705727440234,-11778.92816279,0.00028749,2]
[312268794,1705727440243,-200.0,0.00028875,15]
[312268797,1705727440253,-200.0,0.00028875,15]
[312268799,1705727440262,-200.0,0.00028875,15]
[312268800,1705727440271,-200.0,0.00028875,15]
[312268803,1705727440280,-275.0,0.00028875,15]
[312268805,1705727440290,-2014.44660015,0.000289,2]
[312268807,1705727440299,-278.8559881,0.00029,2]
[312268809,1705727440308,-1879.95128807,0.00029,2]
[312268810,1705727440317,-7640.62811996,0.000295,30]
[312268813,1705727440326,-12423.32320464,0.00029788,2]
[312268814,1705727440336,-309705.21927401,0.0002979,7]
[312268816,1705727440345,-1562.22183731,0.000299,2]
[312268818,1705727440354,-187.17462113,0.00029999,4]
[312268820,1705727440363,-437.79051681,0.00029999,4]
[312268822,1705727440372,-208.42196376,0.00029999,4]
[312268824,1705727440381,-156.00023255,0.00029999,4]
[312268826,1705727440390,-437.79051682,0.00029999,4]
[312268828,1705727440400,-364.00054262,0.00029999,4]
[312268831,1705727440410,-436.74078263,0.00029999,4]
[312268832,1705727440419,-486.31791544,0.00029999,4]
[312268834,1705727440428,-225.59320079,0.00029999,2]
[312268836,1705727440438,-243.99911,0.0003,3]
[312268838,1705727440447,-195.24830444,0.0003,4]
[312268840,1705727440456,-154.73694719,0.0003,2]
[312268843,1705727440467,-980.8946807,0.0003,4]
[312268844,1705727440476,-682.08739099,0.0003,3]
[312268847,1705727440485,-29957.37867167,0.0003,2]
[312268848,1705727440495,-30327.30491484,0.0003,2]
[312268850,1705727440504,-30497.95907604,0.0003,3]
[312268853,1705727440514,-2104.48868232,0.0003,4]
[312268854,1705727440524,-18589.14989047,0.0003,2]
[312268856,1705727440533,-699.95088598,0.0003,2]
[312268858,1705727440544,-363330.18016062,0.0003,30]
[312268860,1705727440554,-548.0316867,0.00030137,2]
[312268862,1705727440564,-159.249814,0.00030137,2]
[312268864,1705727440573,-159.138588,0.00030137,2]
[312268866,1705727440582,-227.0,0.0003091,30]
[312268868,1705727440592,-227.0,0.0003092,30]
[312268871,1705727440601,-227.0,0.0003093,30]
[312268873,1705727440611,-398.0,0.0003094,30]
[312268875,1705727440620,-398.0,0.0003095,30]
[312268877,1705727440629,-398.0,0.0003096,30]
[312268879,1705727440638,-2846.05665284,0.00031,2]
[312268880,1705727440647,-89943.79072898,0.00031,2]
[312268882,1705727440655,-238.14143998,0.00031,4]
[312268884,1705727440665,-200.0,0.00031762,15]
[312268886,1705727440674,-200.0,0.00031762,15]
[312268888,1705727440684,-200.0,0.00031762,15]
[312268890,1705727440696,-200.0,0.00031762,15]
[312268892,1705727440705,-200.0,0.00031762,15]
[312268894,1705727440714,-200.0,0.00031762,15]
[312268896,1705727440723,-305.0,0.00031762,15]
[312268898,1705727440734,-154.73694719,0.00032,4]
[312268901,1705727440743,-319.15753811,0.00032,4]
[312268903,1705727440754,-331.03561731,0.00032458,2]
[312268904,1705727440763,-151.0,0.00032656,2]
[312268906,1705727440772,-1402.08401357,0.00032658,4]
[312268908,1705727440782,-27953.5345546,0.00032658,5]
[312268910,1705727440791,-50000.0,0.00032658,5]
[312268912,1705727440800,-6113.899472,0.00032876,2]
[312268915,1705727440811,-6113.899472,0.00032876,2]
[312268916,1705727440821,-151.0,0.00032876,2]
[312268919,1705727440830,-151.0,0.00032876,2]
[312268921,1705727440840,-500.0,0.00032876,2]
[312268923,1705727440849,-500.0,0.00032876,2]
[312268925,1705727440859,-500.0,0.00032876,2]
[312268927,1705727440868,-500.0,0.00032876,2]
[312268929,1705727440877,-350.98770712,0.00032876,2]
[312268931,1705727440886,-500.0,0.00032876,2]
[312268933,1705727440896,-500.0,0.00032876,2]
[312268935,1705727440905,-500.0,0.00032876,2]
[312268936,1705727440915,-500.0,0.00032876,2]
[312268939,1705727440924,-500.0,0.00032876,2]
[312268941,1705727440933,-502.50955749,0.00032876,2]
[312268942,1705727440942,-500.0,0.00032876,2]
[312268944,1705727440951,-500.0,0.00032876,2]
[312268946,1705727440960,-500.0,0.00032876,2]
[312268948,1705727440969,-500.0,0.00032876,2]
[312268951,1705727440978,-501.44529733,0.00032876,2]
[312268952,1705727440988,-500.0,0.00032876,2]
[312268954,1705727440997,-500.0,0.00032876,2]
[312268957,1705727441008,-500.0,0.00032876,2]
[312268959,1705727441017,-500.0,0.00032876,2]
[312268961,1705727441026,-500.0,0.00032876,2]
[312268963,1705727441036,-500.0,0.00032876,2]
[312268965,1705727441045,-434.42708467,0.00032876,2]
[312268967,1705727441054,-500.0,0.00032876,2]
[312268969,1705727441063,-500.0,0.00032876,2]
[312268971,1705727441072,-517.3988449,0.00032876,2]
[312268973,1705727441081,-443.41846203,0.00032876,2]
[312268974,1705727441090,-500.0,0.00032876,2]
[312268976,1705727441099,-500.0,0.00032876,2]
[312268978,1705727441108,-1007.2,0.00032876,2]
[312268980,1705727441117,-500.0,0.00032876,2]
[312268982,1705727441126,-500.0,0.00032876,2]
[312268984,1705727441135,-500.0,0.00032876,2]
[312268986,1705727441144,-500.0,0.00032876,2]
[312268988,1705727441153,-220.0,0.00032876,2]
[312268990,1705727441163,-500.0,0.00032876,2]
[312268992,1705727441172,-536.34299825,0.00032876,2]
[312268994,1705727441181,-503.81675631,0.00032876,2]
[312268996,1705727441190,-332.89932499,0.00032876,2]
[312268998,1705727441200,-500.0,0.00032876,2]
[312269000,1705727441209,-257.87098016,0.00032876,2]
[312269002,1705727441218,-212.68094512,0.00032876,2]
[312269004,1705727441228,-500.0,0.00032876,2]
[312269006,1705727441237,-527.86052604,0.00032876,2]
[312269008,1705727441246,-500.0,0.00032876,2]
[312269010,1705727441256,-880.29,0.00032876,2]
[312269012,1705727441265,-335.69574307,0.00032876,2]
[312269014,1705727441274,-500.0,0.00032876,2]
[312269016,1705727441283,-502.83855992,0.00032876,2]
[312269018,1705727441293,-500.0,0.00032876,2]
[312269033,1705727441415,-617.74617135,0.00032876,2]
[312269035,1705727441424,-500.0,0.00032876,2]
[312269037,1705727441434,-500.0,0.00032876,2]
[312269039,1705727441443,-500.0,0.00032876,2]
[312269040,1705727441452,-344.95738745,0.00032876,2]
[312269043,1705727441470,-162.89458668,0.00032876,2]
[312269045,1705727441479,-249.18545604,0.00032876,2]
[312269047,1705727441488,-500.0,0.00032876,2]
[312269049,1705727441497,-428.12595652,0.00032876,2]
[312269051,1705727441507,-500.0,0.00032876,2]
[312269053,1705727441516,-500.0,0.00032876,2]
[312269055,1705727441525,-500.0,0.00032876,2]
[312269057,1705727441534,-500.19662977,0.00032876,2]
[312269059,1705727441543,-500.0,0.00032876,2]
[312269061,1705727441552,-500.0,0.00032876,2]
[312269063,1705727441560,-501.80852807,0.00032876,2]
[312269064,1705727441569,-1624.29,0.00032876,2]
[312269065,1705727441578,-500.0,0.00032876,2]
[312269066,1705727441586,-500.0,0.00032876,2]
[312269067,1705727441595,-511.43936969,0.00032876,2]
[312269068,1705727441604,-1000.0,0.00032876,2]
[312269069,1705727441613,-500.0,0.00032876,2]
[312269070,1705727441622,-500.0,0.00032876,2]
[312269071,1705727441631,-224.90899611,0.00032876,2]
[312269072,1705727441643,-275.6673169,0.00032876,2]
[312269073,1705727441651,-500.0,0.00032876,2]
[312269074,1705727441661,-501.6771907,0.00032876,2]
[312269075,1705727441670,-500.0,0.00032876,2]
[312269076,1705727441679,-501.40909335,0.00032876,2]
[312269077,1705727441691,-543.29,0.00032876,2]
[312269078,1705727441699,-529.24302427,0.00032876,2]
[312269079,1705727441708,-500.0,0.00032876,2]
[312269080,1705727441717,-507.16567858,0.00032876,2]
[312269081,1705727441727,-500.0,0.00032876,2]
[312269082,1705727441736,-156.89388993,0.00032876,2]
[312269083,1705727441745,-500.0,0.00032876,2]
[312269084,1705727441754,-461.65658071,0.00032876,2]
[312269086,1705727441764,-500.0,0.00032876,2]
[312269088,1705727441773,-500.58664242,0.00032876,2]
[312269090,1705727441782,-500.0,0.00032876,2]
[312269092,1705727441791,-500.0,0.00032876,2]
[312269094,1705727441799,-500.0,0.00032876,2]
[312269096,1705727441809,-500.0,0.00032876,2]
[312269098,1705727441819,-507.73482022,0.00032876,2]
[312269100,1705727441828,-286.49158774,0.00032876,2]
[312269102,1705727441837,-525.93641845,0.00032876,2]
[312269104,1705727441846,-510.20441833,0.00032876,2]
[312269106,1705727441856,-500.0,0.00032876,2]
[312269108,1705727441865,-583.7,0.00032876,2]
[312269110,1705727441874,-500.0,0.00032876,2]
[312269112,1705727441882,-500.0,0.00032876,2]
[312269113,1705727441891,-500.0,0.00032876,2]
[312269116,1705727441901,-500.0,0.00032876,2]
[312269117,1705727441911,-500.0,0.00032876,2]
[312269119,1705727441920,-500.0,0.00032876,2]
[312269121,1705727441929,-500.0,0.00032876,2]
[312269123,1705727441939,-500.0,0.00032876,2]
[312269126,1705727441949,-429.38866068,0.00032876,2]
[312269128,1705727441958,-355.8903666,0.00032876,2]
[312269129,1705727441967,-500.0,0.00032876,2]
[312269131,1705727441976,-500.0,0.00032876,2]
[312269133,1705727441985,-500.0,0.00032876,2]
[312269135,1705727441995,-500.0,0.00032876,2]
[312269137,1705727442005,-500.0,0.00032876,2]
[312269140,1705727442014,-500.0,0.00032876,2]
[312269142,1705727442023,-624.18017065,0.00032876,2]
[312269143,1705727442032,-500.0,0.00032876,2]
[312269145,1705727442042,-500.0,0.00032876,2]
[312269147,1705727442051,-500.0,0.00032876,2]